{"text_format":"1","workbook":"xlsx","n_sheets":3,"sheets":["ورقة1","ورقة2","ورقة3"],"not_rendered":{"charts":0,"images":0,"macros":0,"external_links":0,"defined_names":0,"comments":0,"pivot_tables":0},"unopened":[],"bounds":{"document_bytes":16777216,"sheet_cells":100000,"rows_first":2000,"rows_last":500,"rows_between":2000,"halvings":0,"cell_chars":16384,"cell_head_chars":4096},"cells_cut":0,"cells_raw":0,"read":"whole","date_system":"1900"}

{"sheet":"ورقة1","index":0,"n_rows":22,"n_cols":9,"rows_kept":22,"cut":false,"hidden":false,"merged":[]}
[]
[]
["اسم الطالب","لقب الطالب","معدل العلوم ","معدل الفزياء","معدل الادب ","معدل الرياضيات","معدل الهندسة"]
["سليم 1","محمود 1"]
["سليم 2","محمود 2"]
["سليم 3","محمود 3"]
["سليم 4","محمود 4"]
["سليم 5","محمود 5",null,null,null,null,null,null,"إذا حذفت A11 يحذف تلقائيا من الورقة 2  و  3   صف بأكمله و شكرا "]
["سليم 6","محمود 6",null,null,null,null,null,null,"وهل هناك كود إخفاء الصفوف التي لا أحتاجها ؟"]
["سليم 7","محمود 7"]
["سليم 9","محمود 9"]
["سليم 10","محمود 10"]
["سليم 11","محمود 11"]
["سليم 12","محمود 12"]
["سليم 13","محمود 13"]
["سليم 14","محمود 14"]
["سليم 15","محمود 15"]
["سليم 16","محمود 16"]
["سليم 17","محمود 17"]
["سليم 18","محمود 18"]
["سليم 19","محمود 19"]
["سليم 20","محمود 20"]

{"sheet":"ورقة2","index":1,"n_rows":22,"n_cols":7,"rows_kept":22,"cut":false,"hidden":false,"merged":[]}
[]
[]
["اسم الطالب","لقب الطالب","معدل العلوم ","معدل الفزياء","معدل الادب ","معدل الرياضيات","معدل الهندسة"]
[{"$f":"الجدول1[[#This Row],[عمود1]]","v":"سليم 1"},{"$f":"الجدول1[[#This Row],[عمود2]]","v":"محمود 1"}]
[{"$f":"الجدول1[[#This Row],[عمود1]]","v":"سليم 2"},{"$f":"الجدول1[[#This Row],[عمود2]]","v":"محمود 2"}]
[{"$f":"الجدول1[[#This Row],[عمود1]]","v":"سليم 3"},{"$f":"الجدول1[[#This Row],[عمود2]]","v":"محمود 3"}]
[{"$f":"الجدول1[[#This Row],[عمود1]]","v":"سليم 4"},{"$f":"الجدول1[[#This Row],[عمود2]]","v":"محمود 4"}]
[{"$f":"الجدول1[[#This Row],[عمود1]]","v":"سليم 5"},{"$f":"الجدول1[[#This Row],[عمود2]]","v":"محمود 5"}]
[{"$f":"الجدول1[[#This Row],[عمود1]]","v":"سليم 6"},{"$f":"الجدول1[[#This Row],[عمود2]]","v":"محمود 6"}]
[{"$f":"الجدول1[[#This Row],[عمود1]]","v":"سليم 7"},{"$f":"الجدول1[[#This Row],[عمود2]]","v":"محمود 7"}]
[{"$f":"الجدول1[[#This Row],[عمود1]]","v":"سليم 9"},{"$f":"الجدول1[[#This Row],[عمود2]]","v":"محمود 9"}]
[{"$f":"الجدول1[[#This Row],[عمود1]]","v":"سليم 10"},{"$f":"الجدول1[[#This Row],[عمود2]]","v":"محمود 10"}]
[{"$f":"الجدول1[[#This Row],[عمود1]]","v":"سليم 11"},{"$f":"الجدول1[[#This Row],[عمود2]]","v":"محمود 11"}]
[{"$f":"الجدول1[[#This Row],[عمود1]]","v":"سليم 12"},{"$f":"الجدول1[[#This Row],[عمود2]]","v":"محمود 12"}]
[{"$f":"الجدول1[[#This Row],[عمود1]]","v":"سليم 13"},{"$f":"الجدول1[[#This Row],[عمود2]]","v":"محمود 13"}]
[{"$f":"الجدول1[[#This Row],[عمود1]]","v":"سليم 14"},{"$f":"الجدول1[[#This Row],[عمود2]]","v":"محمود 14"}]
[{"$f":"الجدول1[[#This Row],[عمود1]]","v":"سليم 15"},{"$f":"الجدول1[[#This Row],[عمود2]]","v":"محمود 15"}]
[{"$f":"الجدول1[[#This Row],[عمود1]]","v":"سليم 16"},{"$f":"الجدول1[[#This Row],[عمود2]]","v":"محمود 16"}]
[{"$f":"الجدول1[[#This Row],[عمود1]]","v":"سليم 17"},{"$f":"الجدول1[[#This Row],[عمود2]]","v":"محمود 17"}]
[{"$f":"الجدول1[[#This Row],[عمود1]]","v":"سليم 18"},{"$f":"الجدول1[[#This Row],[عمود2]]","v":"محمود 18"}]
[{"$f":"الجدول1[[#This Row],[عمود1]]","v":"سليم 19"},{"$f":"الجدول1[[#This Row],[عمود2]]","v":"محمود 19"}]
[{"$f":"الجدول1[[#This Row],[عمود1]]","v":"سليم 20"},{"$f":"الجدول1[[#This Row],[عمود2]]","v":"محمود 20"}]

{"sheet":"ورقة3","index":2,"n_rows":22,"n_cols":7,"rows_kept":22,"cut":false,"hidden":false,"merged":[]}
[]
[]
["اسم الطالب","لقب الطالب","معدل العلوم ","معدل الفزياء","معدل الادب ","معدل الرياضيات","معدل الهندسة"]
[{"$f":"الجدول1[[#This Row],[عمود1]]","v":"سليم 1"},{"$f":"الجدول1[[#This Row],[عمود2]]","v":"محمود 1"}]
[{"$f":"الجدول1[[#This Row],[عمود1]]","v":"سليم 2"},{"$f":"الجدول1[[#This Row],[عمود2]]","v":"محمود 2"}]
[{"$f":"الجدول1[[#This Row],[عمود1]]","v":"سليم 3"},{"$f":"الجدول1[[#This Row],[عمود2]]","v":"محمود 3"}]
[{"$f":"الجدول1[[#This Row],[عمود1]]","v":"سليم 4"},{"$f":"الجدول1[[#This Row],[عمود2]]","v":"محمود 4"}]
[{"$f":"الجدول1[[#This Row],[عمود1]]","v":"سليم 5"},{"$f":"الجدول1[[#This Row],[عمود2]]","v":"محمود 5"}]
[{"$f":"الجدول1[[#This Row],[عمود1]]","v":"سليم 6"},{"$f":"الجدول1[[#This Row],[عمود2]]","v":"محمود 6"}]
[{"$f":"الجدول1[[#This Row],[عمود1]]","v":"سليم 7"},{"$f":"الجدول1[[#This Row],[عمود2]]","v":"محمود 7"}]
[{"$f":"الجدول1[[#This Row],[عمود1]]","v":"سليم 9"},{"$f":"الجدول1[[#This Row],[عمود2]]","v":"محمود 9"}]
[{"$f":"الجدول1[[#This Row],[عمود1]]","v":"سليم 10"},{"$f":"الجدول1[[#This Row],[عمود2]]","v":"محمود 10"}]
[{"$f":"الجدول1[[#This Row],[عمود1]]","v":"سليم 11"},{"$f":"الجدول1[[#This Row],[عمود2]]","v":"محمود 11"}]
[{"$f":"الجدول1[[#This Row],[عمود1]]","v":"سليم 12"},{"$f":"الجدول1[[#This Row],[عمود2]]","v":"محمود 12"}]
[{"$f":"الجدول1[[#This Row],[عمود1]]","v":"سليم 13"},{"$f":"الجدول1[[#This Row],[عمود2]]","v":"محمود 13"}]
[{"$f":"الجدول1[[#This Row],[عمود1]]","v":"سليم 14"},{"$f":"الجدول1[[#This Row],[عمود2]]","v":"محمود 14"}]
[{"$f":"الجدول1[[#This Row],[عمود1]]","v":"سليم 15"},{"$f":"الجدول1[[#This Row],[عمود2]]","v":"محمود 15"}]
[{"$f":"الجدول1[[#This Row],[عمود1]]","v":"سليم 16"},{"$f":"الجدول1[[#This Row],[عمود2]]","v":"محمود 16"}]
[{"$f":"الجدول1[[#This Row],[عمود1]]","v":"سليم 17"},{"$f":"الجدول1[[#This Row],[عمود2]]","v":"محمود 17"}]
[{"$f":"الجدول1[[#This Row],[عمود1]]","v":"سليم 18"},{"$f":"الجدول1[[#This Row],[عمود2]]","v":"محمود 18"}]
[{"$f":"الجدول1[[#This Row],[عمود1]]","v":"سليم 19"},{"$f":"الجدول1[[#This Row],[عمود2]]","v":"محمود 19"}]
[{"$f":"الجدول1[[#This Row],[عمود1]]","v":"سليم 20"},{"$f":"الجدول1[[#This Row],[عمود2]]","v":"محمود 20"}]